[Event "*** Titled Tuesday Blitz"]
[Site "Chess.com"]
[Date "2020.05.19"]
[Round "7"]
[White "davekoenig"]
[Black "Novoselski"]
[Result "0-1"]
[WhiteElo "2173"]
[BlackElo "2324"]
[TimeControl "180+1"]
[EndTime "13:21:11 PDT"]
[Termination "Novoselski won on time"]

1. e4 {[%clk 0:03:00.9]} 1... e6 {[%clk 0:02:58.4]} 2. d4 {[%clk 0:03:00.6]}
2... d5 {[%clk 0:02:58.3]} 3. e5 {[%clk 0:03:01]} 3... c5 {[%clk 0:02:57]} 4. c3
{[%clk 0:03:01.4]} 4... Qb6 {[%clk 0:02:56.2]} 5. Nf3 {[%clk 0:03:00.6]} 5...
Bd7 {[%clk 0:02:56.1]} 6. Be2 {[%clk 0:03:00.5]} 6... Bb5 {[%clk 0:02:52.5]} 7.
c4 {[%clk 0:03:00.6]} 7... dxc4 {[%clk 0:02:51.6]} 8. d5 {[%clk 0:03:00.5]} 8...
exd5 {[%clk 0:02:44.8]} 9. Qxd5 {[%clk 0:02:59.9]} 9... Qc6 {[%clk 0:02:37.5]}
10. Nc3 {[%clk 0:02:49.1]} 10... Ne7 {[%clk 0:02:31.9]} 11. Qxc6+ {[%clk
0:02:25.3]} 11... Bxc6 {[%clk 0:02:30.6]} 12. Bxc4 {[%clk 0:02:24.5]} 12... a6
{[%clk 0:02:29.1]} 13. O-O {[%clk 0:02:09.6]} 13... h6 {[%clk 0:02:25.8]} 14.
Re1 {[%clk 0:02:00.9]} 14... b5 {[%clk 0:02:20.3]} 15. Bd3 {[%clk 0:02:00.3]}
15... c4 {[%clk 0:02:13.2]} 16. Be4 {[%clk 0:01:49.7]} 16... Bxe4 {[%clk
0:02:04.5]} 17. Nxe4 {[%clk 0:01:49.2]} 17... Nec6 {[%clk 0:02:01.6]} 18. Be3
{[%clk 0:01:36.9]} 18... Be7 {[%clk 0:01:52.6]} 19. Ng3 {[%clk 0:01:05.6]} 19...
O-O {[%clk 0:01:48.7]} 20. Nf5 {[%clk 0:01:05.1]} 20... Re8 {[%clk 0:01:39.7]}
21. Nxe7+ {[%clk 0:00:57.5]} 21... Nxe7 {[%clk 0:01:39]} 22. Nd4 {[%clk
0:00:48.3]} 22... Nbc6 {[%clk 0:01:37.9]} 23. Nxc6 {[%clk 0:00:46]} 23... Nxc6
{[%clk 0:01:38.8]} 24. f4 {[%clk 0:00:46.1]} 24... Nb4 {[%clk 0:01:38.2]} 25.
Re2 {[%clk 0:00:43]} 25... Rac8 {[%clk 0:01:28.9]} 26. a4 {[%clk 0:00:39.8]}
26... Nd3 {[%clk 0:01:25.4]} 27. axb5 {[%clk 0:00:37.2]} 27... axb5 {[%clk
0:01:26.3]} 28. g3 {[%clk 0:00:31.4]} 28... f6 {[%clk 0:01:17.9]} 29. exf6
{[%clk 0:00:25.5]} 29... gxf6 {[%clk 0:01:18.8]} 30. Kf1 {[%clk 0:00:24.7]}
30... Re6 {[%clk 0:01:14.8]} 31. Bd4 {[%clk 0:00:24.3]} 31... Rd6 {[%clk
0:01:10.8]} 32. Bg1 {[%clk 0:00:16.2]} 32... b4 {[%clk 0:01:09.1]} 33. Ra7
{[%clk 0:00:13.7]} 33... c3 {[%clk 0:00:47.9]} 34. bxc3 {[%clk 0:00:12.4]} 34...
Rxc3 {[%clk 0:00:41]} 35. Ree7 {[%clk 0:00:11.2]} 35... Rc1+ {[%clk 0:00:39.6]}
36. Kg2 {[%clk 0:00:10.8]} 36... Rc8 {[%clk 0:00:25]} 37. Rg7+ {[%clk
0:00:10.1]} 37... Kf8 {[%clk 0:00:24.5]} 38. Rh7 {[%clk 0:00:10.2]} 38... Kg8
{[%clk 0:00:23.5]} 39. Rag7+ {[%clk 0:00:10.1]} 39... Kf8 {[%clk 0:00:23]} 40.
Rb7 {[%clk 0:00:10.2]} 40... Kg8 {[%clk 0:00:22.3]} 41. Rxh6 {[%clk 0:00:08.6]}
41... Rcd8 {[%clk 0:00:19.3]} 42. Rg6+ {[%clk 0:00:03.2]} 42... Kf8 {[%clk
0:00:17.5]} 43. Rh6 {[%clk 0:00:03.6]} 43... R8d7 {[%clk 0:00:16.3]} 44. Rh8+
{[%clk 0:00:03.3]} 44... Kg7 {[%clk 0:00:15.3]} 45. Rxd7+ {[%clk 0:00:03.3]}
45... Rxd7 {[%clk 0:00:16.2]} 46. Rb8 {[%clk 0:00:03.1]} 46... Kg6 {[%clk
0:00:15.7]} 47. Kf3 {[%clk 0:00:03.3]} 47... Kf5 {[%clk 0:00:14.8]} 48. g4+
{[%clk 0:00:02.8]} 48... Ke6 {[%clk 0:00:14.6]} 49. h4 {[%clk 0:00:02.7]} 49...
Kd5 {[%clk 0:00:14.1]} 50. h5 {[%clk 0:00:02.6]} 50... Kc4 {[%clk 0:00:13.9]}
51. g5 {[%clk 0:00:02.6]} 51... fxg5 {[%clk 0:00:12.6]} 52. fxg5 {[%clk
0:00:03]} 52... b3 {[%clk 0:00:13.5]} 0-1

[Event "*** Titled Tuesday Blitz"]
[Site "Chess.com"]
[Date "2020.05.19"]
[Round "7"]
[White "Vaathi_Coming"]
[Black "Raja3401"]
[Result "1-0"]
[WhiteElo "2885"]
[BlackElo "2735"]
[TimeControl "180+1"]
[EndTime "13:21:12 PDT"]
[Termination "Vaathi_Coming won by resignation"]

1. Nf3 {[%clk 0:03:00.9]} 1... Nf6 {[%clk 0:02:59.3]} 2. e3 {[%clk 0:03:00.5]}
2... d5 {[%clk 0:02:59.6]} 3. b3 {[%clk 0:03:00]} 3... e6 {[%clk 0:02:57.3]} 4.
Bb2 {[%clk 0:03:00.1]} 4... Be7 {[%clk 0:02:57.3]} 5. c4 {[%clk 0:03:00.2]} 5...
O-O {[%clk 0:02:57]} 6. Nc3 {[%clk 0:02:57]} 6... b6 {[%clk 0:02:57]} 7. cxd5
{[%clk 0:02:54.7]} 7... exd5 {[%clk 0:02:47.5]} 8. d4 {[%clk 0:02:54.4]} 8...
Bb7 {[%clk 0:02:46.9]} 9. g3 {[%clk 0:02:54.3]} 9... c5 {[%clk 0:02:42.2]} 10.
Bg2 {[%clk 0:02:54.3]} 10... Re8 {[%clk 0:02:41.9]} 11. O-O {[%clk 0:02:54]}
11... Nbd7 {[%clk 0:02:41.4]} 12. Rc1 {[%clk 0:02:51.6]} 12... Rc8 {[%clk
0:02:38.1]} 13. dxc5 {[%clk 0:02:51.9]} 13... bxc5 {[%clk 0:02:30.6]} 14. Qd2
{[%clk 0:02:51.9]} 14... Ne4 {[%clk 0:02:20.7]} 15. Nxe4 {[%clk 0:02:48]} 15...
dxe4 {[%clk 0:02:21.6]} 16. Bh3 {[%clk 0:02:00.7]} 16... Rc7 {[%clk 0:01:53.2]}
17. Rfd1 {[%clk 0:01:53.2]} 17... Bc6 {[%clk 0:01:28.6]} 18. Ne5 {[%clk
0:01:46]} 18... Nxe5 {[%clk 0:01:17.4]} 19. Bxe5 {[%clk 0:01:46.9]} 19... Qxd2
{[%clk 0:01:03.3]} 20. Rxd2 {[%clk 0:01:47.8]} 20... Rb7 {[%clk 0:01:03.6]} 21.
Bd6 {[%clk 0:01:27.7]} 21... Rd8 {[%clk 0:00:40.4]} 22. Rcd1 {[%clk 0:01:23.5]}
22... g6 {[%clk 0:00:17.5]} 23. Bxe7 {[%clk 0:00:53.2]} 23... Rxd2 {[%clk
0:00:17.5]} 24. Rxd2 {[%clk 0:00:54.1]} 24... Rxe7 {[%clk 0:00:18.1]} 25. Rd8+
{[%clk 0:00:39.9]} 25... Re8 {[%clk 0:00:15.7]} 26. Rd6 {[%clk 0:00:39.6]} 26...
Bb5 {[%clk 0:00:13.6]} 27. Rd5 {[%clk 0:00:38.5]} 27... a6 {[%clk 0:00:13.4]}
28. Bg2 {[%clk 0:00:27.3]} 28... c4 {[%clk 0:00:11]} 29. a4 {[%clk 0:00:17]}
29... cxb3 {[%clk 0:00:11.2]} 30. axb5 {[%clk 0:00:16.8]} 30... b2 {[%clk
0:00:11.7]} 31. Rd1 {[%clk 0:00:17]} 31... Rc8 {[%clk 0:00:12.3]} 32. Bxe4
{[%clk 0:00:16.8]} 32... Rc1 {[%clk 0:00:12.6]} 33. Rf1 {[%clk 0:00:16.8]} 33...
axb5 {[%clk 0:00:10.6]} 34. Kg2 {[%clk 0:00:15.5]} 34... f5 {[%clk 0:00:10.1]}
35. Bd3 {[%clk 0:00:12.8]} 35... Kf7 {[%clk 0:00:10.2]} 36. f4 {[%clk 0:00:12]}
36... Ke7 {[%clk 0:00:10.2]} 37. Kf2 {[%clk 0:00:11.8]} 37... Kd6 {[%clk
0:00:10.5]} 38. Ke2 {[%clk 0:00:11.6]} 38... Kc5 {[%clk 0:00:09.9]} 39. Rd1
{[%clk 0:00:08.4]} 39... Kb4 {[%clk 0:00:09.7]} 40. Kd2 {[%clk 0:00:08]} 40...
Rxd1+ {[%clk 0:00:07.6]} 41. Kxd1 {[%clk 0:00:08.9]} 41... Kc3 {[%clk
0:00:08.2]} 42. Bb1 {[%clk 0:00:09.1]} 42... b4 {[%clk 0:00:06.9]} 43. Ke2
{[%clk 0:00:09.2]} 43... Kc4 {[%clk 0:00:07.2]} 44. Kd2 {[%clk 0:00:09.1]} 44...
b3 {[%clk 0:00:07.8]} 45. e4 {[%clk 0:00:08.1]} 45... fxe4 {[%clk 0:00:07.8]}
46. Bxe4 {[%clk 0:00:09]} 46... Kd4 {[%clk 0:00:08.4]} 47. Bb1 {[%clk
0:00:09.3]} 47... Kd5 {[%clk 0:00:06.4]} 48. Kc3 {[%clk 0:00:09.3]} 48... Ke6
{[%clk 0:00:06.1]} 49. Kxb3 {[%clk 0:00:09.3]} 49... Kf6 {[%clk 0:00:05.7]} 50.
Kxb2 {[%clk 0:00:08.9]} 1-0

[Event "*** Titled Tuesday Blitz"]
[Site "Chess.com"]
[Date "2020.05.19"]
[Round "7"]
[White "vpantev"]
[Black "kuli4ik"]
[Result "0-1"]
[WhiteElo "2560"]
[BlackElo "2778"]
[TimeControl "180+1"]
[EndTime "13:21:12 PDT"]
[Termination "kuli4ik won on time"]

1. d4 {[%clk 0:02:50.6]} 1... g6 {[%clk 0:03:00]} 2. Bf4 {[%clk 0:02:49.7]} 2...
Bg7 {[%clk 0:03:00.9]} 3. e3 {[%clk 0:02:49.1]} 3... d6 {[%clk 0:03:01.3]} 4.
Nf3 {[%clk 0:02:49]} 4... Nd7 {[%clk 0:03:01.7]} 5. h3 {[%clk 0:02:49]} 5... e5
{[%clk 0:03:01.7]} 6. Bh2 {[%clk 0:02:49.5]} 6... Qe7 {[%clk 0:03:02]} 7. Be2
{[%clk 0:02:49.3]} 7... Nh6 {[%clk 0:03:01.3]} 8. c3 {[%clk 0:02:48.4]} 8... O-O
{[%clk 0:03:00.4]} 9. Qb3 {[%clk 0:02:48.2]} 9... Kh8 {[%clk 0:03:00.3]} 10. a4
{[%clk 0:02:46.5]} 10... f5 {[%clk 0:03:00.2]} 11. dxe5 {[%clk 0:02:46.4]} 11...
dxe5 {[%clk 0:02:59.7]} 12. Qa3 {[%clk 0:02:46.4]} 12... c5 {[%clk 0:02:51]} 13.
Qa2 {[%clk 0:02:39.2]} 13... g5 {[%clk 0:02:50]} 14. Na3 {[%clk 0:02:36.3]}
14... f4 {[%clk 0:02:49]} 15. e4 {[%clk 0:02:34.5]} 15... Nf7 {[%clk 0:02:46.1]}
16. Nd2 {[%clk 0:02:33.4]} 16... Nf6 {[%clk 0:02:42.6]} 17. f3 {[%clk
0:02:30.6]} 17... Nd6 {[%clk 0:02:34.3]} 18. Ndc4 {[%clk 0:02:25.6]} 18... Be6
{[%clk 0:02:32.9]} 19. b3 {[%clk 0:02:25.4]} 19... Nf7 {[%clk 0:02:31.4]} 20.
Bg1 {[%clk 0:02:23.4]} 20... Kg8 {[%clk 0:02:25.2]} 21. Bf2 {[%clk 0:02:22.1]}
21... h5 {[%clk 0:02:25.1]} 22. O-O-O {[%clk 0:02:20.8]} 22... b6 {[%clk
0:02:20.6]} 23. Qd2 {[%clk 0:02:15]} 23... Rfd8 {[%clk 0:02:19.7]} 24. Qc2
{[%clk 0:02:14.6]} 24... Rdb8 {[%clk 0:02:16.3]} 25. Nb5 {[%clk 0:02:10.3]}
25... Ne8 {[%clk 0:02:14.1]} 26. Rd5 {[%clk 0:02:01.3]} 26... a6 {[%clk
0:02:11.8]} 27. Nba3 {[%clk 0:01:57.3]} 27... Qc7 {[%clk 0:01:52.3]} 28. Nb2
{[%clk 0:01:52.3]} 28... Ned6 {[%clk 0:01:43.2]} 29. c4 {[%clk 0:01:51.8]} 29...
h4 {[%clk 0:01:36.2]} 30. Rhd1 {[%clk 0:01:50.8]} 30... Nb7 {[%clk 0:01:29.6]}
31. Be1 {[%clk 0:01:49.3]} 31... Nbd8 {[%clk 0:01:26.6]} 32. a5 {[%clk
0:01:35.4]} 32... bxa5 {[%clk 0:01:23.6]} 33. Na4 {[%clk 0:01:32.3]} 33... Bf8
{[%clk 0:01:22.8]} 34. Bf2 {[%clk 0:01:27.5]} 34... Nc6 {[%clk 0:01:16.7]} 35.
Rxc5 {[%clk 0:01:22.3]} 35... Qb7 {[%clk 0:01:08.7]} 36. Kb2 {[%clk 0:01:11.5]}
36... Nd4 {[%clk 0:01:01.6]} 37. Rxd4 {[%clk 0:00:59.5]} 37... exd4 {[%clk
0:01:02.5]} 38. Bxd4 {[%clk 0:00:58.8]} 38... Rd8 {[%clk 0:00:57]} 39. Bc3
{[%clk 0:00:53.5]} 39... Rac8 {[%clk 0:00:52.9]} 40. Rxa5 {[%clk 0:00:44.4]}
40... Bb4 {[%clk 0:00:44]} 41. e5 {[%clk 0:00:32.3]} 41... Kg7 {[%clk
0:00:39.5]} 42. Bd3 {[%clk 0:00:18.8]} 42... Bxa5 {[%clk 0:00:32.2]} 43. Bxa5
{[%clk 0:00:18.3]} 43... Nxe5 {[%clk 0:00:32.4]} 44. Be4 {[%clk 0:00:17.8]}
44... Qb8 {[%clk 0:00:27.9]} 45. Bc3 {[%clk 0:00:17.4]} 45... Kh6 {[%clk
0:00:16.6]} 46. Ka2 {[%clk 0:00:17.1]} 46... Nxc4 {[%clk 0:00:15]} 47. bxc4
{[%clk 0:00:12.4]} 47... Bxc4+ {[%clk 0:00:14.5]} 48. Nxc4 {[%clk 0:00:09.4]}
48... Rxc4 {[%clk 0:00:15.4]} 49. Bg7+ {[%clk 0:00:05.5]} 49... Kxg7 {[%clk
0:00:15.3]} 50. Qxc4 {[%clk 0:00:05.7]} 50... Qe5 {[%clk 0:00:13.5]} 0-1

[Event "*** Titled Tuesday Blitz"]
[Site "Chess.com"]
[Date "2020.05.19"]
[Round "7"]
[White "Pittiplatsh"]
[Black "MasterKroket"]
[Result "1-0"]
[WhiteElo "2556"]
[BlackElo "2409"]
[TimeControl "180+1"]
[EndTime "13:21:12 PDT"]
[Termination "Pittiplatsh won by resignation"]

1. e4 {[%clk 0:02:58.1]} 1... c5 {[%clk 0:02:58.9]} 2. Nf3 {[%clk 0:02:57.8]}
2... e6 {[%clk 0:02:59.2]} 3. d4 {[%clk 0:02:57.9]} 3... cxd4 {[%clk 0:03:00.1]}
4. Nxd4 {[%clk 0:02:58.3]} 4... Nc6 {[%clk 0:03:00.8]} 5. Nc3 {[%clk 0:02:58.5]}
5... Qc7 {[%clk 0:03:01.3]} 6. Be3 {[%clk 0:02:57.7]} 6... a6 {[%clk 0:03:01.6]}
7. Qf3 {[%clk 0:02:57.7]} 7... Ne5 {[%clk 0:03:01.4]} 8. Qg3 {[%clk 0:02:56.4]}
8... Nf6 {[%clk 0:03:00.2]} 9. O-O-O {[%clk 0:02:47.1]} 9... d6 {[%clk
0:02:56.3]} 10. f4 {[%clk 0:02:42.2]} 10... Neg4 {[%clk 0:02:54.1]} 11. Bg1
{[%clk 0:02:40]} 11... h5 {[%clk 0:02:54]} 12. h3 {[%clk 0:02:36.3]} 12... Nh6
{[%clk 0:02:50.1]} 13. Bd3 {[%clk 0:02:33.4]} 13... b5 {[%clk 0:02:39.3]} 14. e5
{[%clk 0:02:17.8]} 14... h4 {[%clk 0:02:18.3]} 15. Qe1 {[%clk 0:01:47.9]} 15...
b4 {[%clk 0:02:11.9]} 16. Ne4 {[%clk 0:01:21.7]} 16... Nxe4 {[%clk 0:02:03.5]}
17. Bxe4 {[%clk 0:01:21.1]} 17... d5 {[%clk 0:02:04.1]} 18. Bd3 {[%clk
0:01:21.2]} 18... Be7 {[%clk 0:01:52.4]} 19. Bf2 {[%clk 0:01:20.1]} 19... Ng8
{[%clk 0:01:05.8]} 20. Nf3 {[%clk 0:01:12]} 20... a5 {[%clk 0:00:53]} 21. Bxh4
{[%clk 0:01:00.1]} 21... Bxh4 {[%clk 0:00:46.1]} 22. Nxh4 {[%clk 0:01:01]} 22...
Ne7 {[%clk 0:00:46.6]} 23. Nf3 {[%clk 0:00:59.4]} 23... Bd7 {[%clk 0:00:43.3]}
24. Nd4 {[%clk 0:00:58.3]} 24... Qb6 {[%clk 0:00:40.7]} 25. Qg1 {[%clk
0:00:47.5]} 25... a4 {[%clk 0:00:33.6]} 26. Nf5 {[%clk 0:00:41.2]} 26... Qxg1
{[%clk 0:00:33]} 27. Nd6+ {[%clk 0:00:40.9]} 27... Kf8 {[%clk 0:00:31.6]} 28.
Rhxg1 {[%clk 0:00:41.8]} 28... b3 {[%clk 0:00:19.4]} 29. cxb3 {[%clk 0:00:37.5]}
29... axb3 {[%clk 0:00:20.3]} 30. a3 {[%clk 0:00:37.7]} 30... Nc8 {[%clk
0:00:18.4]} 31. Nxc8 {[%clk 0:00:36.4]} 31... Rxc8+ {[%clk 0:00:18.1]} 32. Kd2
{[%clk 0:00:37.3]} 32... Ke7 {[%clk 0:00:18.3]} 33. Rc1 {[%clk 0:00:37.4]} 33...
f6 {[%clk 0:00:17.8]} 34. Rc3 {[%clk 0:00:34.2]} 34... fxe5 {[%clk 0:00:16.6]}
35. fxe5 {[%clk 0:00:32.9]} 35... Rb8 {[%clk 0:00:16.8]} 36. Rf1 {[%clk
0:00:29]} 36... Rhf8 {[%clk 0:00:12.9]} 37. Rxf8 {[%clk 0:00:27.9]} 37... Rxf8
{[%clk 0:00:12.1]} 38. Ke3 {[%clk 0:00:23.3]} 38... Rb8 {[%clk 0:00:11.5]} 39.
Be2 {[%clk 0:00:20.6]} 39... Be8 {[%clk 0:00:11]} 40. Kd4 {[%clk 0:00:20]} 40...
Bg6 {[%clk 0:00:10]} 41. Bd1 {[%clk 0:00:19.8]} 41... Bc2 {[%clk 0:00:07.6]} 42.
Bxc2 {[%clk 0:00:19.2]} 42... bxc2 {[%clk 0:00:08.5]} 43. Rxc2 {[%clk
0:00:19.8]} 43... Rb3 {[%clk 0:00:08.5]} 44. Rd2 {[%clk 0:00:16.9]} 44... Kd7
{[%clk 0:00:07.2]} 45. Rc2 {[%clk 0:00:17.3]} 45... Kd8 {[%clk 0:00:05.2]} 46.
Kc5 {[%clk 0:00:16.6]} 46... Kd7 {[%clk 0:00:05.4]} 47. a4 {[%clk 0:00:16.8]}
47... Re3 {[%clk 0:00:04.5]} 48. a5 {[%clk 0:00:16.5]} 48... Rxe5 {[%clk
0:00:03]} 49. a6 {[%clk 0:00:16.5]} 49... Re1 {[%clk 0:00:03.7]} 50. Kb6 {[%clk
0:00:16.5]} 50... Ra1 {[%clk 0:00:03.6]} 51. a7 {[%clk 0:00:16.5]} 51... d4
{[%clk 0:00:04.3]} 52. Rc7+ {[%clk 0:00:16.5]} 52... Kd6 {[%clk 0:00:04.2]} 53.
Rc8 {[%clk 0:00:16.2]} 53... e5 {[%clk 0:00:04.5]} 54. a8=Q {[%clk 0:00:15.4]}
54... Rxa8 {[%clk 0:00:04.4]} 55. Rxa8 {[%clk 0:00:15.6]} 55... d3 {[%clk
0:00:05.1]} 56. Rd8+ {[%clk 0:00:16]} 1-0

[Event "*** Titled Tuesday Blitz"]
[Site "Chess.com"]
[Date "2020.05.19"]
[Round "7"]
[White "AnkitGajwa"]
[Black "lupta_robin"]
[Result "0-1"]
[WhiteElo "2437"]
[BlackElo "2615"]
[TimeControl "180+1"]
[EndTime "13:21:12 PDT"]
[Termination "lupta_robin won by checkmate"]

1. e4 {[%clk 0:02:52.3]} 1... c5 {[%clk 0:03:00.3]} 2. Nf3 {[%clk 0:02:50.5]}
2... d6 {[%clk 0:03:00.7]} 3. d4 {[%clk 0:02:35.4]} 3... cxd4 {[%clk 0:03:01.6]}
4. Nxd4 {[%clk 0:02:34.7]} 4... Nf6 {[%clk 0:03:01.5]} 5. Nc3 {[%clk 0:02:35]}
5... g6 {[%clk 0:03:01.9]} 6. Be3 {[%clk 0:02:34.9]} 6... Bg7 {[%clk 0:03:02.5]}
7. f3 {[%clk 0:02:35.4]} 7... O-O {[%clk 0:03:03.1]} 8. Qd2 {[%clk 0:02:35.8]}
8... Nc6 {[%clk 0:03:03.6]} 9. Bc4 {[%clk 0:02:36.3]} 9... Bd7 {[%clk
0:03:02.2]} 10. O-O-O {[%clk 0:02:36.5]} 10... Ne5 {[%clk 0:03:02.7]} 11. Bb3
{[%clk 0:02:36.6]} 11... Rc8 {[%clk 0:03:03.3]} 12. Kb1 {[%clk 0:02:36.9]} 12...
Nc4 {[%clk 0:03:01.4]} 13. Bxc4 {[%clk 0:02:36.1]} 13... Rxc4 {[%clk 0:03:02.3]}
14. g4 {[%clk 0:02:35.8]} 14... b5 {[%clk 0:02:57.6]} 15. b3 {[%clk 0:02:30.6]}
15... b4 {[%clk 0:02:33]} 16. Nce2 {[%clk 0:02:26.9]} 16... Rc8 {[%clk
0:02:20.6]} 17. h4 {[%clk 0:02:25.4]} 17... e5 {[%clk 0:02:04.3]} 18. Nf5 {[%clk
0:02:25.4]} 18... gxf5 {[%clk 0:02:02.8]} 19. gxf5 {[%clk 0:02:26.2]} 19... d5
{[%clk 0:01:57.6]} 20. Rhg1 {[%clk 0:02:23.8]} 20... Kh8 {[%clk 0:01:55.9]} 21.
Bg5 {[%clk 0:00:27.2]} 21... Qb6 {[%clk 0:01:37]} 22. h5 {[%clk 0:00:25.4]}
22... Rg8 {[%clk 0:01:23.9]} 23. h6 {[%clk 0:00:23]} 23... Bf8 {[%clk
0:01:24.2]} 24. Ng3 {[%clk 0:00:23.2]} 24... Be7 {[%clk 0:01:11.9]} 25. Nh5
{[%clk 0:00:21.2]} 25... d4 {[%clk 0:01:05.4]} 26. Ng7 {[%clk 0:00:17.8]} 26...
a5 {[%clk 0:01:02]} 27. Qh2 {[%clk 0:00:17.2]} 27... Qd6 {[%clk 0:00:56.5]} 28.
f4 {[%clk 0:00:17]} 28... Nxe4 {[%clk 0:00:54.4]} 29. fxe5 {[%clk 0:00:17.4]}
29... Qc5 {[%clk 0:00:45]} 30. Bxe7 {[%clk 0:00:17.8]} 30... Qxe7 {[%clk
0:00:44.1]} 31. Rxd4 {[%clk 0:00:18.3]} 31... Nc3+ {[%clk 0:00:38.5]} 32. Kb2
{[%clk 0:00:18.7]} 32... a4 {[%clk 0:00:37]} 33. Qd2 {[%clk 0:00:14.9]} 33...
Qxe5 {[%clk 0:00:33.8]} 34. Re1 {[%clk 0:00:14.7]} 34... Qf6 {[%clk 0:00:31.5]}
35. Nh5 {[%clk 0:00:14.1]} 35... Qxf5 {[%clk 0:00:13.4]} 36. Rf4 {[%clk
0:00:14.4]} 36... Qc5 {[%clk 0:00:11.1]} 37. Rc4 {[%clk 0:00:10.9]} 37... Qf5
{[%clk 0:00:09.1]} 38. Rf4 {[%clk 0:00:09.1]} 38... Qc5 {[%clk 0:00:05.5]} 39.
Rc4 {[%clk 0:00:04.3]} 39... Qb6 {[%clk 0:00:05.6]} 40. Qxd7 {[%clk 0:00:03.6]}
40... Rxc4 {[%clk 0:00:04.4]} 41. bxc4 {[%clk 0:00:03.4]} 41... a3+ {[%clk
0:00:04.9]} 42. Ka1 {[%clk 0:00:01.9]} 42... Ne4 {[%clk 0:00:04.8]} 43. Qxf7
{[%clk 0:00:01.8]} 43... Qd4+ {[%clk 0:00:04.4]} 44. Kb1 {[%clk 0:00:02.2]}
44... Qb2# {[%clk 0:00:04.4]} 0-1

[Event "*** Titled Tuesday Blitz"]
[Site "Chess.com"]
[Date "2020.05.19"]
[Round "7"]
[White "OsorioFernando"]
[Black "Kolle05"]
[Result "0-1"]
[WhiteElo "2242"]
[BlackElo "2389"]
[TimeControl "180+1"]
[EndTime "13:21:12 PDT"]
[Termination "Kolle05 won on time"]

1. e4 {[%clk 0:03:00.3]} 1... c5 {[%clk 0:02:59.3]} 2. Nc3 {[%clk 0:03:00.2]}
2... d6 {[%clk 0:02:58.5]} 3. g3 {[%clk 0:03:01.1]} 3... g6 {[%clk 0:02:57.2]}
4. Bg2 {[%clk 0:03:01.4]} 4... Bg7 {[%clk 0:02:57.7]} 5. d3 {[%clk 0:03:01.5]}
5... e5 {[%clk 0:02:58]} 6. Be3 {[%clk 0:03:01.3]} 6... Ne7 {[%clk 0:02:58.5]}
7. Qd2 {[%clk 0:03:00.8]} 7... Nbc6 {[%clk 0:02:57.6]} 8. Bh6 {[%clk 0:03:00.7]}
8... Bxh6 {[%clk 0:02:55.2]} 9. Qxh6 {[%clk 0:02:59.8]} 9... Be6 {[%clk
0:02:55.1]} 10. Nd5 {[%clk 0:02:43.6]} 10... Bxd5 {[%clk 0:02:53.2]} 11. exd5
{[%clk 0:02:43]} 11... Nd4 {[%clk 0:02:53.2]} 12. Qd2 {[%clk 0:02:40.7]} 12...
Qd7 {[%clk 0:02:44.7]} 13. c3 {[%clk 0:02:27.2]} 13... Nb5 {[%clk 0:02:44]} 14.
Ne2 {[%clk 0:02:18]} 14... Nc7 {[%clk 0:02:42.3]} 15. c4 {[%clk 0:02:15.8]}
15... O-O {[%clk 0:02:38.4]} 16. O-O {[%clk 0:02:13]} 16... Nf5 {[%clk
0:02:37.1]} 17. f4 {[%clk 0:02:08.2]} 17... Rae8 {[%clk 0:02:28.4]} 18. Bh3
{[%clk 0:02:06.4]} 18... e4 {[%clk 0:02:25.6]} 19. Nc3 {[%clk 0:01:03.2]} 19...
e3 {[%clk 0:02:05.6]} 20. Bxf5 {[%clk 0:01:02.8]} 20... Qxf5 {[%clk 0:02:02.4]}
21. Qe2 {[%clk 0:01:02.4]} 21... b5 {[%clk 0:01:59]} 22. Rf3 {[%clk 0:00:53.3]}
22... bxc4 {[%clk 0:01:54.1]} 23. dxc4 {[%clk 0:00:52.7]} 23... Re7 {[%clk
0:01:12]} 24. Rxe3 {[%clk 0:00:50.4]} 24... Rxe3 {[%clk 0:01:12.9]} 25. Qxe3
{[%clk 0:00:50.3]} 25... Re8 {[%clk 0:01:13.8]} 26. Qd2 {[%clk 0:00:49]} 26...
h5 {[%clk 0:00:53.2]} 27. Re1 {[%clk 0:00:39.9]} 27... h4 {[%clk 0:00:51.3]} 28.
Rxe8+ {[%clk 0:00:37]} 28... Nxe8 {[%clk 0:00:52.2]} 29. Qe2 {[%clk 0:00:34.5]}
29... Nf6 {[%clk 0:00:51.3]} 30. Nb5 {[%clk 0:00:29.9]} 30... Ne4 {[%clk
0:00:22.6]} 31. Nc3 {[%clk 0:00:16]} 31... Nxc3 {[%clk 0:00:19.2]} 32. bxc3
{[%clk 0:00:15.9]} 32... h3 {[%clk 0:00:19.5]} 33. Kf2 {[%clk 0:00:14.9]} 33...
Qb1 {[%clk 0:00:18.1]} 34. Kf3 {[%clk 0:00:14.2]} 34... Kg7 {[%clk 0:00:17.8]}
35. Kg4 {[%clk 0:00:10.1]} 35... Qf5+ {[%clk 0:00:16.7]} 36. Kf3 {[%clk
0:00:10.1]} 36... Qb1 {[%clk 0:00:12.4]} 37. g4 {[%clk 0:00:09.9]} 37... Qc1
{[%clk 0:00:11]} 38. Qe3 {[%clk 0:00:04.8]} 38... Qf1+ {[%clk 0:00:09.9]} 39.
Kg3 {[%clk 0:00:02.7]} 39... Qg2+ {[%clk 0:00:09]} 40. Kh4 {[%clk 0:00:03.1]}
40... Qxh2 {[%clk 0:00:09.9]} 41. Qxh3 {[%clk 0:00:03.2]} 41... Qxf4 {[%clk
0:00:09]} 42. Qd3 {[%clk 0:00:02.6]} 42... Qh2+ {[%clk 0:00:06.9]} 43. Qh3
{[%clk 0:00:01.9]} 43... g5+ {[%clk 0:00:06.8]} 0-1